bitfinex-derivatives/quotes_SOLF0:USTF0_20241226
["timestamp","ask_amount","ask_price","bid_price","bid_amount"]
[1735254183451,9.82166666,188.68,188.64,2.6532]
[1735254183757,9.82166666,188.68,188.61,3.304]
[1735254184259,3.14,188.67,188.61,3.304]
[1735254184556,3.14,188.67,188.62,1.6842]
[1735254184955,3.14,188.67,188.64,2.6532]
[1735254186060,2.653,188.66,188.62,4.3377]
[1735254186257,2.653,188.66,188.62,2.6535]
[1735254186455,3.14,188.67,188.61,3.304]
[1735254186756,9.82166666,188.65,188.61,3.304]
[1735254186953,9.82166666,188.65,188.55,1.6842]
[1735254188163,9.82166666,188.62,188.55,1.6842]
[1735254188358,3.14,188.61,188.55,1.6842]
[1735254189262,3.14,188.61,188.6,2.6538]
[1735254191564,3.14,188.61,188.58,2.654]
[1735254191764,3.14,188.61,188.53,3.1546]
[1735254193268,5.7937,188.61,188.58,2.6541]
[1735254193665,3.14,188.61,188.58,2.6541]
[1735254195365,3.14,188.61,188.6,2.6538]
[1735254195562,3.14,188.61,188.53,3.1546]
[1735254195963,3.14,188.61,188.59,2.6539]
[1735254196168,9.43066954,188.61,188.53,3.1546]
[1735254196668,3.14,188.61,188.54,6.29066954]
[1735254196858,6.29066954,188.65,188.56,6.29066954]
[1735254197061,6.29066954,188.65,188.57,1.6351]
[1735254197261,6.29066954,188.65,188.64,2.6532]
[1735254198167,6.29066954,188.65,188.59,2.6539]
[1735254198466,6.29066954,188.6,188.53,3.1546]
[1735254198869,6.29066954,188.6,188.57,2.6541]
[1735254199060,6.29066954,188.6,188.53,3.1546]
[1735254200170,5.7937,188.61,188.53,3.1546]
[1735254200383,3.14,188.61,188.59,2.654]
[1735254200871,3.14,188.62,188.59,2.6539]
[1735254201168,3.14,188.62,188.53,3.1546]
[1735254202471,2.6537,188.61,188.57,2.6542]
[1735254204377,9.83058397,188.6,188.53,3.1546]
[1735254204665,9.83058397,188.6,188.48,1.6351]
[1735254204872,2.6543,188.57,188.53,2.6548]
[1735254205078,3.2,188.56,188.53,2.6548]
[1735254207981,3.2,188.56,188.51,2.655]
[1735254209073,3.2,188.56,188.48,3.1988]
[1735254209274,2.6546,188.55,188.52,2.655]
[1735254212973,3.2,188.56,188.48,3.1988]
[1735254213179,2.6547,188.54,188.48,3.1988]
[1735254214173,2.6547,188.54,188.49,2.6553]
[1735254214376,2.6547,188.54,188.48,3.1988]
[1735254214679,2.6547,188.54,188.5,2.6552]
[1735254217575,9.83058397,188.51,188.33,121.14615798]
[1735254217780,3.2,188.5,188.4,4.6945]
[1735254218775,3.2,188.5,188.4,14.52508397]
[1735254219281,3.2,188.5,188.49,2.6554]
[1735254219678,3.2,188.5,188.42,3.2]
[1735254219878,5.8553,188.5,188.46,2.6558]
[1735254220180,6.29895235,188.48,188.41,6.29895235]
[1735254220876,6.29895235,188.48,188.47,2.6557]
[1735254221578,6.29895235,188.48,188.45,2.6559]
[1735254221781,6.29895235,188.48,188.4,10.99345235]
[1735254223285,6.29895235,188.48,188.4,4.6945]
[1735254223588,6.29895235,188.48,188.46,2.6558]
[1735254227487,6.29895235,188.48,188.4,4.6945]
[1735254227785,6.29895235,188.45,188.4,4.6945]
[1735254227984,6.29895235,188.45,188.44,2.6561]
[1735254228487,3.2,188.46,188.4,4.6945]
[1735254228687,6.29895235,188.47,188.45,2.6559]
[1735254230989,8.95465235,188.47,188.44,2.6561]
[1735254231186,6.29895235,188.45,188.44,2.6561]
[1735254236190,2.6556,188.48,188.44,2.6561]
[1735254236393,25.20168482,188.55,188.44,6.29895235]
[1735254236596,6.29895235,188.52,188.44,6.29895235]
[1735254236789,6.29895235,188.52,188.5,2.6552]
[1735254236996,9.47895235,188.54,188.46,6.29895235]
[1735254237195,6.29895235,188.55,188.48,6.29895235]
[1735254237700,6.29895235,188.55,188.54,2.6547]
[1735254239393,6.29895235,188.55,188.47,4.7999]
[1735254239594,6.29895235,188.53,188.47,4.7999]
[1735254240288,6.29895235,188.53,188.52,2.655]
[1735254240493,3.18,188.58,188.47,4.7999]
[1735254240690,6.29895235,188.55,188.47,4.7999]
[1735254241300,6.29895235,188.53,188.5,2.6551]
[1735254241601,6.29895235,188.51,188.47,4.7999]
[1735254242097,9.47895235,188.53,188.47,4.7999]
[1735254242600,3.18,188.53,188.52,2.655]
[1735254242901,6.29895235,188.55,188.47,4.7999]
[1735254243201,6.29895235,188.55,188.52,2.6549]
[1735254243394,6.29895235,188.53,188.47,4.7999]
[1735254243997,6.29895235,188.55,188.47,4.7999]
[1735254244201,3.18,188.57,188.47,4.7999]
[1735254244401,6.29895235,188.55,188.47,4.7999]
[1735254244598,6.29895235,188.55,188.53,2.6548]
[1735254245294,22.02168482,188.62,188.47,4.7999]
[1735254245498,22.02168482,188.62,188.52,6.29895235]
[1735254245499,6.29895235,188.6,188.52,6.29895235]
[1735254246596,6.29895235,188.6,188.52,9.47895235]
[1735254246795,6.29895235,188.6,188.52,6.29895235]
[1735254247801,6.29895235,188.6,188.56,2.6543]
[1735254248901,6.29895235,188.6,188.57,2.6542]
[1735254249804,6.29895235,188.6,188.52,6.29895235]
[1735254250104,6.29895235,188.6,188.58,2.6541]
[1735254250299,83.33629948,188.68,188.52,6.29895235]
[1735254250504,6.29895235,188.63,188.56,6.29895235]
[1735254250695,6.29895235,188.65,188.57,3.2137]
[1735254251005,6.29895235,188.65,188.59,2.6539]
[1735254251300,6.29895235,188.65,188.57,4.8652]
[1735254252206,6.29895235,188.61,188.57,4.8652]
[1735254253296,6.29895235,188.61,188.6,2.6538]
[1735254253599,6.29895235,188.61,188.57,4.8652]
[1735254255407,6.29895235,188.61,188.59,2.654]
[1735254256106,6.29895235,188.61,188.57,4.8652]
[1735254256107,6.29895235,188.61,188.57,3.2137]
[1735254256302,6.29895235,188.59,188.5,1.6651]
[1735254256611,3.18,188.62,188.5,1.6651]
[1735254256612,6.29895235,188.56,188.5,1.6651]
[1735254258205,6.29895235,188.56,188.52,2.6549]
[1735254258399,8.95345235,188.56,188.52,2.6549]
[1735254260310,12.13345235,188.56,188.52,2.6549]
[1735254263413,3.18,188.56,188.5,1.6651]
[1735254263711,9.47895235,188.56,188.53,2.6548]
[1735254263907,6.29895235,188.54,188.49,2.26268341]
[1735254264114,8.95395235,188.52,188.49,2.26268341]
[1735254264406,8.95395235,188.52,188.48,2.6555]
[1735254264611,6.29895235,188.5,188.46,2.6558]
[1735254265114,6.29895235,188.5,188.44,3.2898]
[1735254266306,6.29895235,188.5,188.47,2.6556]
[1735254266711,21.75498731,188.6,188.44,3.2898]
[1735254267013,6.29895235,188.55,188.46,6.29895235]
[1735254267406,6.29895235,188.53,188.46,6.29895235]
[1735254267807,8.95405235,188.51,188.46,2.6558]
[1735254268208,6.29895235,188.49,188.46,2.6558]
[1735254268805,6.29895235,188.51,188.48,2.6555]
[1735254269005,8.95405235,188.51,188.44,9.58875235]
[1735254269210,6.29895235,188.51,188.44,3.2898]
[1735254270116,2.6553,188.5,188.46,2.6557]
[1735254271514,6.29895235,188.49,188.44,3.2898]
[1735254271818,6.29895235,188.49,188.4,6.29895235]
[1735254272521,2.6556,188.48,188.4,6.29895235]
[1735254272719,9.47895235,188.47,188.39,4.7493]
[1735254272925,6.29895235,188.45,188.39,4.7493]
[1735254273219,6.29895235,188.45,188.42,2.6563]
[1735254273819,9.47895235,188.47,188.39,4.7493]
[1735254274021,6.29895235,188.47,188.4,6.29895235]
[1735254274210,6.29895235,188.49,188.4,6.29895235]
[1735254275515,6.29895235,188.49,188.45,2.6559]
[1735254275516,8.95435235,188.49,188.45,2.6559]
[1735254277814,8.95435235,188.49,188.46,2.6558]
[1735254278822,6.29895235,188.47,188.46,2.6558]
[1735254279824,6.29895235,188.47,188.4,6.29895235]
[1735254279825,6.29895235,188.47,188.44,2.656]
[1735254280022,6.29895235,188.47,188.4,6.29895235]
[1735254282426,8.95465235,188.47,188.39,3.2037]
[1735254282722,6.29895235,188.47,188.39,3.2037]
[1735254282935,6.29895235,188.43,188.4,2.6566]
[1735254284425,3.2,188.45,188.39,1.5552]
[1735254285431,3.2,188.45,188.43,2.6561]
[1735254286530,6.29895235,188.44,188.34,3.1212]
[1735254286722,6.29895235,188.4,188.34,3.1212]
[1735254287128,6.29895235,188.4,188.37,2.657]
[1735254287329,6.29895235,188.38,188.22,88.20021849]
[1735254287525,3.98533729,188.5,188.3,6.29895235]
[1735254287725,6.29895235,188.41,188.33,6.29895235]
[1735254288030,6.29895235,188.37,188.26,3.147]
[1735254288229,9.49895235,188.37,188.28,6.29895235]
[1735254288533,6.29895235,188.33,188.26,9.44595235]
[1735254288831,6.29895235,188.33,188.3,2.658]
[1735254289331,6.29895235,188.39,188.32,6.29895235]
[1735254290334,6.29895235,188.37,188.3,6.29895235]
[1735254290632,6.29895235,188.39,188.3,6.29895235]
[1735254290828,6.29895235,188.39,188.32,2.6577]
[1735254291032,6.29895235,188.39,188.3,6.29895235]
[1735254291729,6.29895235,188.37,188.26,3.147]
[1735254292033,6.29895235,188.35,188.27,6.29895235]
[1735254292732,8.95635235,188.35,188.3,2.658]
[1735254292932,8.95635235,188.35,188.27,6.29895235]
[1735254293234,6.29895235,188.35,188.27,6.29895235]
[1735254293727,6.29895235,188.35,188.29,2.6582]
[1735254294032,6.29895235,188.35,188.27,6.29895235]
[1735254294833,6.29895235,188.33,188.26,3.147]
[1735254295231,3.2,188.37,188.27,6.29895235]
[1735254295429,9.49895235,188.37,188.29,6.29895235]
[1735254295632,9.49895235,188.37,188.34,2.6574]
[1735254296047,6.29895235,188.35,188.34,2.6574]
[1735254296338,6.29895235,188.35,188.26,3.147]
[1735254296545,6.29895235,188.35,188.32,2.6577]
[1735254297433,3.2,188.37,188.14,30.03105462]
[1735254297434,6.29895235,188.33,188.14,30.03105462]
[1735254297746,6.29895235,188.33,188.07,101.86788552]
[1735254297747,6.29895235,188.15,188.07,101.86788552]
[1735254298032,6.29895235,188.08,188.05,360.46903443]
[1735254298244,2.6615,188.06,188.05,360.46903443]
[1735254298435,8.96045235,188.06,188.05,13.13172199]
[1735254298626,2.6625,187.99,187.98,338.39285519]
[1735254298827,4.42,187.99,187.88,58.79700865]
[1735254299138,6.29895235,187.91,187.88,58.79700865]
[1735254299430,2.6635,187.92,187.81,6.29895235]
[1735254299627,6.29895235,187.91,187.8,4.9905]
[1735254299828,51.89938299,187.91,187.8,4.9905]
[1735254300030,51.89938299,187.91,187.82,6.29895235]
[1735254300226,51.89938299,187.91,187.8,4.9905]
[1735254300430,82.02590633,187.91,187.82,9.90296816]
[1735254300630,3.5351999,187.9,187.85,9.90296816]
[1735254300825,69.32290633,187.91,187.87,9.90296816]
[1735254301033,89.84294313,187.9,187.89,12.56676816]
[1735254301234,89.84294313,187.9,187.76,16.52041036]
[1735254301433,89.84294313,187.9,187.84,9.90296816]
[1735254301637,89.84294313,187.9,187.84,4.44]
[1735254301934,73.18499763,187.89,187.84,4.44]
[1735254302138,73.18499763,187.89,187.82,4.44]
[1735254302330,43.05847429,187.88,187.74,15.84402094]
[1735254302639,1.33242631,187.87,187.75,4.44]
[1735254302839,43.05847429,187.87,187.78,15.84402094]
[1735254303038,43.05847429,187.87,187.82,15.84402094]
[1735254303232,43.05847429,187.87,187.83,4.44]
[1735254303433,30.12652334,187.89,187.83,4.44]
[1735254303639,30.12652334,187.89,187.84,4.44]
[1735254303836,30.12652334,187.89,187.78,15.84402094]
[1735254304037,30.12652334,187.89,187.83,4.44]
[1735254304236,262.25854118,187.88,187.83,4.44]
[1735254304834,59.48232852,187.87,187.83,4.44]
[1735254305037,59.48232852,187.87,187.81,4.44]
[1735254305340,59.48232852,187.86,187.82,4.44]
[1735254305934,59.48232852,187.86,187.77,15.84402094]
[1735254306136,59.48232852,187.86,187.78,4.44]
[1735254306436,59.48232852,187.85,187.79,2.6652]
[1735254306641,59.48232852,187.85,187.78,4.44]
[1735254307138,89.60885186,187.84,187.78,4.44]
[1735254308142,59.48232852,187.83,187.78,4.44]
[1735254308645,59.48232852,187.83,187.8,2.6651]
[1735254309045,59.48232852,187.82,187.8,2.6451]
[1735254309546,163.96176253,187.82,187.8,2.6451]
[1735254309743,163.96176253,187.82,187.75,15.84402094]
[1735254309948,163.96176253,187.82,187.76,4.44]
[1735254310246,108.34153105,187.81,187.79,15.84402094]
[1735254310443,15.3153236,187.81,187.77,4.44]
[1735254310649,377.44305633,187.88,187.87,2.6642]
[1735254310845,377.44305633,187.88,187.86,4.44]
[1735254311345,377.44305633,187.88,187.84,2.6645]
[1735254311650,377.44305633,187.88,187.83,4.44]
[1735254311842,377.44305633,187.88,187.75,15.84402094]
[1735254312047,377.44305633,187.88,187.86,2.6643]
[1735254312248,377.44305633,187.88,187.86,7.1043]
[1735254314652,377.44305633,187.88,187.87,4.44]
[1735254315341,377.44305633,187.88,187.87,7.1042]
[1735254315547,5.9014,187.98,187.82,55.36]
[1735254316046,5.9014,187.98,187.9,2.6637]
[1735254316439,3.2387,187.98,187.89,4.44]
[1735254316645,15.84402094,187.93,187.86,4.44]
[1735254317045,15.84402094,187.93,187.9,32.11488997]
[1735254317349,15.84402094,187.93,187.9,21.95048997]
[1735254317350,2.6635,187.92,187.9,21.95048997]
[1735254317543,2.6635,187.92,187.88,85.57453418]
[1735254317544,15.84402094,187.93,187.88,70.33193418]
[1735254317748,15.84402094,187.89,187.84,142.70081163]
[1735254317954,18.50802094,187.89,187.82,7.1048]
[1735254318149,18.50802094,187.89,187.82,4.44]
[1735254318351,18.50802094,187.89,187.72,1.6802]
[1735254318550,18.50802094,187.89,187.83,2.6647]
[1735254319051,15.84402094,187.89,187.72,1.6802]
[1735254319248,2.6642,187.88,187.73,4.44]
[1735254319459,15.84402094,187.89,187.74,4.44]
[1735254319649,15.84402094,187.85,187.74,4.44]
[1735254319848,15.84402094,187.85,187.81,2.665]
[1735254320252,15.84402094,187.85,187.74,4.44]
[1735254320556,15.84402094,187.89,187.75,1.614]
[1735254321659,15.84402094,187.82,187.74,4.44]
[1735254322259,15.84402094,187.82,187.8,2.6651]
[1735254323159,15.84402094,187.85,187.8,2.6651]
[1735254323559,15.84402094,187.85,187.74,4.44]
[1735254323860,18.50862094,187.85,187.79,2.6653]
[1735254325152,2.6648,187.83,187.73,1.5666]
[1735254325353,15.84402094,187.85,187.73,1.5666]
[1735254325850,15.84402094,187.85,187.73,6.0066]
[1735254326050,2.6649,187.82,187.77,2.6655]
[1735254326452,2.6649,187.82,187.73,6.0066]
[1735254327060,2.6649,187.82,187.77,2.6656]
[1735254327256,2.6647,187.84,187.73,6.0066]
[1735254327453,2.6647,187.84,187.78,2.6653]
[1735254327861,15.84402094,187.85,187.78,2.6653]
[1735254328061,2.6647,187.83,187.78,2.6653]
[1735254328655,18.50902094,187.81,187.76,2.6657]
[1735254328857,15.84402094,187.81,187.73,4.44]
[1735254329562,3.1872,187.88,187.73,4.44]
[1735254329563,15.84402094,187.85,187.73,4.44]
[1735254330165,2.6648,187.83,187.78,2.6654]
[1735254331265,15.84402094,187.81,187.75,2.6658]
[1735254331461,15.84402094,187.81,187.73,4.22]
[1735254331657,18.50902094,187.81,187.74,2.6659]
[1735254331963,18.50902094,187.81,187.72,4.22]
[1735254332359,18.50902094,187.81,187.7,1.614]
[1735254332663,18.50902094,187.81,187.71,4.22]
[1735254332864,18.50902094,187.81,187.76,2.6656]
[1735254333364,15.84402094,187.81,187.7,1.614]
[1735254333560,15.84402094,187.81,187.76,2.6657]
[1735254334064,2.6653,187.79,187.75,2.6658]
[1735254334260,9.91639617,187.79,187.7,1.614]
[1735254334664,9.91639617,187.79,187.72,2.6662]
[1735254335162,2.6656,187.77,187.72,2.6662]
[1735254336261,9.91639617,187.76,187.72,2.6662]
[1735254336961,12.58209617,187.76,187.72,2.6662]
[1735254337163,12.58209617,187.76,187.69,33.33333333]
[1735254337164,9.91639617,187.73,187.69,33.33333333]
[1735254337358,8.5153,187.88,187.69,33.33333333]
[1735254337564,9.91639617,187.79,187.69,33.33333333]
[1735254337864,2.6656,187.77,187.73,2.6661]
[1735254338065,1.33347314,187.76,187.73,2.6661]
[1735254338262,1.33347314,187.75,187.73,2.6661]
[1735254338565,1.33325989,187.74,187.73,2.6661]
[1735254339683,9.91639617,187.76,187.69,33.33333333]
[1735254339868,3.46648999,187.75,187.69,33.33333333]
[1735254340071,3.46648999,187.74,187.69,33.33333333]
[1735254340367,3.46703971,187.73,187.69,33.33333333]
[1735254340563,3.46703971,187.72,187.69,33.33333333]
[1735254340760,3.46705996,187.71,187.69,33.33333333]
[1735254340964,3.46705996,187.7,187.69,33.33333333]
[1735254341966,1.3334846,187.7,187.69,36.00003333]
[1735254342158,1.3334846,187.7,187.69,33.33333333]
[1735254342159,3.46711706,187.7,187.69,33.33333333]
[1735254342361,1.33350656,187.7,187.69,33.33333333]
[1735254342965,1.33359021,187.7,187.69,33.33333333]
[1735254344562,4.00019021,187.7,187.69,33.33333333]
[1735254344765,13.91658638,187.7,187.69,33.33333333]
[1735254348775,21.16638255,187.7,187.59,33.33333333]
[1735254348969,9.91639617,187.65,187.59,33.33333333]
[1735254349171,1.33391469,187.64,187.59,33.33333333]
[1735254349478,9.91639617,187.75,187.61,9.91639617]
[1735254349673,9.91639617,187.75,187.62,7.5628]
[1735254349891,11.57069617,187.78,187.64,9.91639617]
[1735254350477,9.91639617,187.78,187.67,9.91639617]
[1735254350684,9.91639617,187.78,187.68,4.24]
[1735254350880,9.91639617,187.78,187.69,4.24]
[1735254351278,9.91639617,187.78,187.73,2.666]
[1735254351481,9.91639617,187.78,187.67,9.91639617]
[1735254351686,2.6657,187.77,187.68,4.24]
[1735254352181,9.91639617,187.78,187.69,4.24]
[1735254352379,2.6659,187.75,187.68,2.6668]
[1735254352581,9.91639617,187.78,187.64,17.06096713]
[1735254352785,9.91639617,187.78,187.65,4.24]
[1735254352786,9.91639617,187.75,187.65,4.24]
[1735254352983,9.91639617,187.78,187.65,4.24]
[1735254353989,2.6658,187.76,187.7,2.6665]
[1735254354286,9.91639617,187.78,187.65,4.24]
[1735254354486,9.91639617,187.78,187.66,1.6123]
[1735254354784,9.91639617,187.78,187.68,2.6668]
[1735254354785,2.6661,187.74,187.68,2.6668]
[1735254355484,9.91639617,187.78,187.67,4.24]
[1735254355682,9.91639617,187.73,187.65,4.24]
[1735254356079,2.6667,187.7,187.65,4.24]
[1735254356483,9.91639617,187.73,187.64,2.6673]
[1735254356685,9.91639617,187.7,187.63,4.24]
[1735254357386,2.667,187.67,187.63,2.6676]
[1735254357587,9.91639617,187.7,187.6,55.44]
[1735254357791,9.91639617,187.7,187.59,33.33333333]
[1735254357988,2.6674,187.65,187.61,2.6678]
[1735254358289,1.5676,187.76,187.59,37.57333333]
[1735254358588,9.91639617,187.73,187.59,37.57333333]
[1735254358991,9.91639617,187.73,187.61,9.91639617]
[1735254359686,2.6663,187.72,187.68,2.6668]
[1735254360188,9.91639617,187.73,187.68,2.6668]
[1735254360387,2.6664,187.71,187.67,2.667]
[1735254360693,9.91639617,187.73,187.62,4.06]
[1735254361589,9.91639617,187.73,187.59,33.33333333]
[1735254361791,9.91639617,187.73,187.6,4.06]
[1735254361996,2.667,187.68,187.63,2.6674]
[1735254362585,2.667,187.67,187.63,2.6674]
[1735254362791,2.667,187.67,187.64,2.6674]
[1735254362992,9.91639617,187.7,187.6,4.06]
[1735254363195,1.6458,187.77,187.6,4.06]
[1735254363196,9.91639617,187.8,187.71,2.6663]
[1735254363390,9.91639617,187.77,187.67,4.06]
[1735254363791,9.91639617,187.77,187.67,2.6669]
[1735254363995,9.91639617,187.77,187.66,4.06]
[1735254364288,9.91639617,187.74,187.59,43.2497295]
[1735254364491,9.91639617,187.71,187.6,4.06]
[1735254364988,2.6671,187.67,187.6,4.06]
[1735254365189,9.91639617,187.71,187.6,4.06]
[1735254365789,9.91639617,187.68,187.59,33.33333333]
[1735254366195,15.89260756,187.67,187.59,33.33333333]
[1735254366588,15.89260756,187.67,187.59,36.00143333]
[1735254366589,2.6675,187.64,187.59,36.00143333]
[1735254367495,2.6676,187.63,187.59,36.00143333]
[1735254367692,15.89260756,187.67,187.59,33.33333333]
[1735254368106,2.668,187.61,187.59,33.33333333]
[1735254368796,2.668,187.6,187.59,33.33333333]
[1735254369512,2.668,187.6,187.59,30.79133333]
[1735254370507,2.6677,187.62,187.59,30.79133333]
[1735254370702,15.89260756,187.67,187.59,30.79133333]
[1735254371104,2.6673,187.65,187.59,30.79133333]
[1735254371413,15.89260756,187.67,187.59,30.79133333]
[1735254371610,2.6674,187.65,187.6,2.6679]
[1735254371822,3.1347,187.7,187.6,2.6679]
[1735254372009,3.1347,187.7,187.59,34.85133333]
[1735254372718,3.1347,187.7,187.59,37.51943333]
[1735254373119,2.6676,187.64,187.59,37.51943333]
[1735254373616,3.1347,187.7,187.59,34.85133333]
[1735254373815,1.5941,187.7,187.59,34.85133333]
[1735254374015,15.89260756,187.71,187.6,1.5598]
[1735254374216,2.6668,187.69,187.64,2.6674]
[1735254374413,15.89260756,187.71,187.64,2.6674]
[1735254375011,2.6667,187.69,187.64,2.6674]
[1735254375417,15.89260756,187.71,187.64,2.6674]
[1735254375614,2.6669,187.68,187.64,2.6674]
[1735254375916,15.89260756,187.71,187.63,4.06]
[1735254376117,2.6674,187.65,187.63,4.06]
[1735254376717,2.6674,187.65,187.61,4.06]
[1735254377521,2.6674,187.65,187.61,6.7278]
[1735254378224,2.6672,187.66,187.62,2.6677]
[1735254378418,15.89260756,187.73,187.61,4.06]
[1735254378816,2.6666,187.71,187.61,4.06]
[1735254380118,1.0,187.76,187.61,4.06]
[1735254380119,2.666,187.74,187.61,4.06]
[1735254380317,1.0,187.76,187.62,15.89260756]
[1735254380524,15.89260756,187.81,187.73,2.6661]
[1735254380724,15.89260756,187.81,187.74,4.06]
[1735254381024,2.6655,187.78,187.74,4.06]
[1735254381214,15.89260756,187.81,187.74,4.06]
[1735254381428,15.89260756,187.85,187.74,4.06]
[1735254381622,2.6649,187.82,187.74,4.06]
[1735254381818,15.89260756,187.85,187.76,2.6657]
[1735254382020,2.6651,187.81,187.76,2.6657]
[1735254382222,15.89260756,187.85,187.74,4.06]
[1735254383117,15.89260756,187.89,187.74,4.06]
[1735254383325,2.664,187.88,187.82,2.6649]
[1735254383627,2.664,187.88,187.83,4.06]
[1735254383818,15.89260756,187.89,187.85,2.6644]
[1735254384035,15.89260756,187.89,187.83,4.06]
[1735254384524,2.6636,187.91,187.83,4.06]
[1735254385022,18.55600756,187.93,187.86,2.6643]
[1735254385323,18.55600756,187.93,187.84,4.9219]
[1735254385626,15.89260756,187.97,187.84,4.9219]
[1735254386217,2.6629,187.96,187.87,2.664]
[1735254386418,15.89260756,187.97,187.88,4.06]
[1735254387220,2.6633,187.93,187.87,2.6641]
[1735254387523,2.6633,187.93,187.88,4.06]
[1735254388225,2.6631,187.95,187.89,2.6638]
[1735254388525,15.89260756,187.97,187.84,4.9219]
[1735254388727,15.89260756,187.97,187.85,3.88]
[1735254389126,2.6629,187.96,187.9,2.6637]
[1735254389427,2.6629,187.96,187.91,3.88]
[1735254389725,15.89260756,187.97,187.9,2.6637]
[1735254389726,2.6631,187.95,187.9,2.6637]
[1735254389930,15.89260756,187.97,187.9,3.88]
[1735254390324,2.663,187.95,187.9,3.88]
[1735254391631,15.89260756,187.97,187.9,3.88]
[1735254391927,15.89260756,188.01,187.9,3.88]
[1735254392431,2.6624,188.0,187.95,2.6629]
[1735254392726,15.89260756,188.01,187.97,2.6627]
[1735254392925,15.89260756,188.05,187.98,3.88]
[1735254393526,15.89260756,188.01,187.94,3.88]
[1735254393731,2.6625,187.99,187.94,3.88]
[1735254394121,15.89260756,188.01,187.94,3.88]
[1735254394727,15.89260756,188.01,187.85,1.5729]
[1735254395028,15.89260756,187.97,187.85,1.5729]
[1735254395231,15.89260756,187.97,187.86,3.88]
[1735254395429,17.51040756,188.0,187.86,3.88]
[1735254395629,2.663,187.95,187.86,3.88]
[1735254396130,2.663,187.95,187.9,2.6637]
[1735254396335,2.6633,187.94,187.86,3.88]
[1735254397134,2.6633,187.93,187.88,2.6639]
[1735254397333,17.51040756,188.0,187.85,1.5729]
[1735254397533,15.89260756,187.96,187.86,6.5443]
[1735254398636,2.6637,187.9,187.87,3.88]
[1735254400534,15.89260756,187.96,187.87,3.88]
[1735254400736,17.51040756,188.0,187.87,3.88]
[1735254400960,15.89260756,187.95,187.87,3.88]
[1735254401132,2.6634,187.93,187.87,3.88]
[1735254401327,15.89260756,187.95,187.86,3.88]
[1735254401932,15.89260756,187.95,187.8,1.6285]
[1735254402137,1.3334,187.94,187.81,3.88]
[1735254402333,2.3334,187.94,187.81,3.88]
[1735254402834,2.3334,187.94,187.8,1.6285]
[1735254403031,15.89260756,187.87,187.76,3.2806]
[1735254403340,15.89260756,187.87,187.77,3.88]
[1735254403533,15.89260756,187.87,187.71,1.6285]
[1735254403734,15.89260756,187.87,187.74,3.88]
[1735254404037,15.89260756,187.83,187.74,3.88]
[1735254404337,1.583,187.86,187.74,3.88]
[1735254404537,2.6647,187.84,187.8,2.6651]
[1735254404730,15.89260756,187.87,187.74,3.88]
[1735254405131,1.0,187.86,187.75,3.88]
[1735254405937,1.0,187.86,187.77,2.6655]
[1735254406136,1.0,187.86,187.75,3.88]
[1735254406838,15.89260756,187.83,187.71,4.8165]
[1735254407144,15.89260756,187.83,187.71,8.6965]
[1735254407343,2.6658,187.76,187.72,2.6663]
[1735254407839,15.89260756,187.75,187.67,3.88]
[1735254408139,15.89260756,187.75,187.65,3.88]
[1735254408339,2.6667,187.69,187.63,1.6567]
[1735254408545,2.6667,187.69,187.64,3.88]
[1735254408745,15.89260756,187.75,187.64,3.88]
[1735254408945,3.88,187.78,187.63,1.6567]
[1735254408946,15.89260756,187.71,187.63,1.6567]
[1735254409244,15.89260756,187.71,187.6,3.302]
[1735254409948,2.6666,187.7,187.63,2.6675]
[1735254410144,2.6666,187.7,187.6,3.302]
[1735254411447,2.6666,187.7,187.64,2.6673]
[1735254413549,2.6666,187.7,187.65,2.6673]
[1735254413743,1.0,187.74,187.65,3.88]
[1735254414145,1.0,187.74,187.66,1.5796]
[1735254415451,2.6662,187.73,187.68,2.6668]
[1735254416552,2.6666,187.7,187.66,4.2467]
[1735254416748,15.89260756,187.73,187.64,3.88]
[1735254416951,15.89260756,187.73,187.63,3.88]
[1735254417350,15.89260756,187.73,187.61,1.6286]